bitfinex/quotes_SOLUSD_20250719
["timestamp","ask_amount","ask_price","bid_price","bid_amount"]
[1752923813316,5.93714302,176.36,176.34,129.72]
[1752923813516,5.93714302,176.36,176.35,0.67]
[1752923813759,5.66935421,176.39,176.35,0.67]
[1752923813958,0.71,176.42,176.36,0.67]
[1752923814244,11.60552687,176.42,176.37,5.93714302]
[1752923814427,11.60552687,176.42,176.38,42.77]
[1752923814626,11.60552687,176.42,176.39,0.67]
[1752923814927,11.60552687,176.42,176.4,0.67]
[1752923815137,5.93714302,176.41,176.38,42.77]
[1752923815341,5.93714302,176.39,176.38,42.1]
[1752923815637,5.93714302,176.39,176.37,87.6]
[1752923815841,5.93714302,176.38,176.37,87.6]
[1752923816041,5.93714302,176.38,176.36,42.73]
[1752923816335,5.66838385,176.42,176.37,0.68]
[1752923816525,5.93714302,176.4,176.38,0.68]
[1752923816726,5.93714302,176.4,176.39,0.68]
[1752923817030,5.93714302,176.4,176.37,0.68]
[1752923817228,5.93714302,176.39,176.37,0.68]
[1752923817620,19.83789603,176.43,176.37,0.68]
[1752923817834,5.93714302,176.38,176.36,42.06]
[1752923818039,5.93714302,176.37,176.36,42.06]
[1752923818524,0.68,176.42,176.36,42.06]
[1752923818725,5.93714302,176.37,176.36,42.06]
[1752923819026,5.93714302,176.37,176.34,42.68]
[1752923819331,5.93714302,176.37,176.35,0.68]
[1752923819640,5.93714302,176.36,176.35,0.68]
[1752923820244,5.93714302,176.37,176.35,0.68]
[1752923820416,5.93714302,176.38,176.35,0.68]
[1752923820617,5.93714302,176.39,176.36,0.68]
[1752923820936,5.93714302,176.39,176.37,0.68]
[1752923821123,5.93714302,176.39,176.37,88.28]
[1752923821322,5.66829157,176.42,176.37,87.6]
[1752923821642,5.66829157,176.42,176.34,87.6]
[1752923821643,5.93714302,176.38,176.34,87.6]
[1752923821939,5.93714302,176.35,176.29,88.28]
[1752923822130,5.93714302,176.31,176.29,130.24]
[1752923822321,5.93714302,176.31,176.3,0.68]
[1752923822517,96.55597839,176.42,176.3,0.68]
[1752923822721,5.93714302,176.34,176.3,88.28]
[1752923822920,5.93714302,176.35,176.31,42.64]
[1752923823118,5.66999611,176.37,176.32,0.68]
[1752923823324,5.93714302,176.37,176.33,41.94]
[1752923823832,5.93714302,176.34,176.33,41.94]
[1752923824034,5.93714302,176.34,176.31,34.66]
[1752923824035,5.93714302,176.34,176.31,76.6]
[1752923824231,5.93714302,176.34,176.31,75.92]
[1752923824433,5.93714302,176.34,176.32,0.68]
[1752923824625,11.60809128,176.34,176.31,41.94]
[1752923824831,11.60809128,176.34,176.31,42.62]
[1752923825132,5.93714302,176.34,176.32,0.68]
[1752923825444,5.67022,176.36,176.32,0.68]
[1752923825743,5.67022,176.36,176.32,0.18]
[1752923825936,5.93714302,176.35,176.32,0.18]
[1752923826333,5.93714302,176.34,176.32,0.18]
[1752923826728,11.60818364,176.34,176.31,129.54]
[1752923826928,5.93714302,176.32,176.31,87.6]
[1752923827133,5.67104062,176.34,176.31,87.6]
[1752923827425,5.93714302,176.32,176.31,87.6]
[1752923827933,5.67104062,176.34,176.31,87.6]
[1752923828244,5.93714302,176.32,176.31,87.6]
[1752923828627,5.93714302,176.33,176.31,87.6]
[1752923828822,11.60863876,176.33,176.31,87.6]
[1752923829239,5.67056703,176.35,176.31,87.6]
[1752923829442,5.67056703,176.35,176.32,0.68]
[1752923829638,11.60771005,176.35,176.32,0.68]
[1752923829946,5.67056703,176.35,176.32,0.68]
[1752923830149,11.60771005,176.35,176.32,0.68]
[1752923831119,5.67024985,176.36,176.31,129.48]
[1752923831320,11.60739287,176.36,176.33,0.68]
[1752923831542,5.93714302,176.35,176.33,0.68]
[1752923831739,5.93714302,176.36,176.34,0.68]
[1752923832347,5.93714302,176.37,176.34,0.68]
[1752923832726,5.93714302,176.35,176.33,41.86]
[1752923833038,5.93714302,176.35,176.33,42.54]
[1752923833227,5.93714302,176.35,176.28,34.54727932]
[1752923833228,5.93714302,176.34,176.31,42.54]
[1752923833430,5.93714302,176.33,176.31,41.86]
[1752923833940,5.93714302,176.32,176.29,0.68]
[1752923834234,5.93714302,176.32,176.3,41.86]
[1752923834428,5.93714302,176.32,176.29,87.6]
[1752923834833,5.93714302,176.31,176.29,87.6]
[1752923835151,4.32687786,176.3,176.27,87.6]
[1752923835359,3.64687786,176.28,176.23,1.5587]
[1752923835532,3.64687786,176.26,176.23,44.1187]
[1752923835848,0.68,176.28,176.23,44.1187]
[1752923836052,3.64687786,176.27,176.23,44.1187]
[1752923836253,3.64687786,176.27,176.23,43.4387]
[1752923836430,3.64687786,176.27,176.24,0.68]
[1752923836634,3.64687786,176.28,176.25,0.68]
[1752923837126,3.64687786,176.27,176.25,0.68]
[1752923837524,3.64687786,176.27,176.23,43.4387]
[1752923837724,3.64687786,176.27,176.24,0.68]
[1752923837931,5.67286077,176.28,176.23,43.4387]
[1752923838234,3.64687786,176.26,176.23,44.1187]
[1752923838434,0.68,176.3,176.24,0.68]
[1752923838650,3.64687786,176.27,176.24,0.68]
[1752923839048,5.94549156,176.27,176.24,0.68]
[1752923839653,5.94549156,176.26,176.24,0.68]
[1752923840256,6.35238965,176.3,176.22,7.0911]
[1752923840257,5.94549156,176.25,176.22,7.0911]
[1752923840437,0.68,176.28,176.22,0.71]
[1752923840758,5.94549156,176.24,176.22,0.71]
[1752923840956,5.94549156,176.23,176.22,0.71]
[1752923841345,5.67362795,176.26,176.22,0.71]
[1752923841566,0.68,176.25,176.22,0.03]
[1752923841866,5.94549156,176.24,176.22,0.03]
[1752923842430,0.68,176.32,176.23,6.62549156]
[1752923842634,5.94549156,176.28,176.24,48.52549156]
[1752923842936,5.94549156,176.3,176.25,7.19286744]
[1752923843140,6.35161354,176.32,176.26,0.68]
[1752923843465,5.94549156,176.3,176.27,41.88]
[1752923843779,5.94549156,176.3,176.27,42.56]
[1752923844131,6.35161354,176.32,176.27,42.56]
[1752923844335,5.94549156,176.3,176.27,42.56]
[1752923844745,5.94549156,176.28,176.24,26.68]
[1752923845141,5.94549156,176.26,176.24,129.48]
[1752923845284,5.94549156,176.25,176.24,87.6]
[1752923845788,6.62549156,176.25,176.24,87.6]
[1752923846488,12.29925042,176.25,176.24,87.6]
[1752923846657,11.61925042,176.25,176.24,87.6]
[1752923846851,6.39375886,176.25,176.24,87.6]
[1752923847158,12.33925042,176.25,176.22,0.03]
[1752923847356,5.94549156,176.23,176.22,0.03]
[1752923847748,6.66549156,176.23,176.22,0.03]
[1752923848473,0.72,176.26,176.22,0.03]
[1752923848675,5.94549156,176.23,176.22,0.03]
[1752923850073,5.94549156,176.25,176.22,0.73]
[1752923850284,5.67247149,176.29,176.23,0.7]
[1752923850566,5.67247149,176.29,176.23,88.3]
[1752923850567,5.94549156,176.27,176.23,88.3]
[1752923850783,5.94549156,176.26,176.23,88.3]
[1752923850960,5.94549156,176.25,176.23,88.3]
[1752923851150,6.39247149,176.29,176.23,88.3]
[1752923851350,5.94549156,176.25,176.23,88.3]
[1752923852081,5.94549156,176.26,176.23,88.3]
[1752923852653,5.67336427,176.27,176.23,88.3]
[1752923852976,5.67336427,176.27,176.24,0.7]
[1752923852977,5.94549156,176.26,176.24,0.7]
[1752923853582,5.94549156,176.3,176.25,48.60549156]
[1752923853794,5.94549156,176.31,176.26,7.21283525]
[1752923854093,5.94549156,176.33,176.28,5.94549156]
[1752923854259,5.94549156,176.33,176.29,43.22724714]
[1752923854460,5.94549156,176.33,176.3,0.7]
[1752923854661,5.94549156,176.31,176.29,41.96]
[1752923855082,6.39127192,176.33,176.29,41.96]
[1752923855273,5.94549156,176.31,176.29,41.96]
[1752923855461,6.39127192,176.33,176.27,42.0]
[1752923855665,5.94549156,176.31,176.27,42.7]
[1752923855864,5.94549156,176.31,176.28,0.7]
[1752923856274,5.94549156,176.29,176.25,0.7]
[1752923856480,5.94549156,176.28,176.26,41.98]
[1752923856962,5.94549156,176.29,176.26,42.68]
[1752923857984,5.94549156,176.29,176.27,0.7]
[1752923858184,5.67189583,176.31,176.27,0.7]
[1752923858387,0.72,176.32,176.28,42.64]
[1752923858388,5.94549156,176.32,176.28,42.64]
[1752923858688,5.94549156,176.32,176.29,0.7]
[1752923858985,3.64634775,176.32,176.29,0.7]
[1752923859186,5.67093886,176.34,176.29,0.7]
[1752923859489,5.67093886,176.34,176.3,0.7]
[1752923859661,3.64634775,176.33,176.3,0.7]
[1752923859861,3.64634775,176.32,176.28,42.50727932]
[1752923860101,3.64634775,176.32,176.29,0.7]
[1752923860657,3.64634775,176.31,176.28,42.64]
[1752923860858,3.64634775,176.29,176.28,41.94]
[1752923861068,6.66422214,176.29,176.24,87.6]
[1752923861262,5.94422214,176.25,176.23,41.96]
[1752923861462,5.94422214,176.25,176.23,130.26]
[1752923861669,5.94422214,176.24,176.22,0.03]
[1752923861873,5.94422214,176.23,176.22,0.03]
[1752923863184,5.67431664,176.24,176.22,0.03]
[1752923863486,5.94422214,176.23,176.22,0.03]
[1752923864494,5.67431664,176.24,176.22,0.03]
[1752923864700,5.94422214,176.23,176.22,0.03]
[1752923864896,11.6186249,176.23,176.22,0.03]
[1752923865796,5.94422214,176.23,176.22,0.03]
[1752923866396,5.94422214,176.24,176.22,0.03]
[1752923866574,5.94422214,176.24,176.22,0.73]
[1752923866771,14.90248669,176.28,176.22,0.73]
[1752923867005,5.94422214,176.23,176.22,0.03]
[1752923868804,11.6186249,176.23,176.22,0.03]
[1752923869878,5.94422214,176.23,176.22,0.03]
[1752923870080,5.67412084,176.24,176.22,0.73]
[1752923870282,5.6731151,176.27,176.23,0.7]
[1752923870483,5.94422214,176.25,176.23,0.7]
[1752923870681,5.94422214,176.25,176.23,42.52]
[1752923871092,5.94422214,176.25,176.23,41.82]
[1752923871306,11.61800936,176.25,176.23,41.82]
[1752923871600,5.94422214,176.24,176.23,41.82]
[1752923872888,11.61800936,176.25,176.23,41.82]
[1752923873490,5.94422214,176.24,176.23,41.82]
[1752923875283,5.94422214,176.24,176.23,75.8]
[1752923875488,5.94422214,176.24,176.23,41.82]
[1752923875793,5.67378722,176.25,176.23,41.82]
[1752923876000,5.94422214,176.24,176.23,41.82]
[1752923876205,5.67378722,176.25,176.23,41.82]
[1752923876500,5.94422214,176.24,176.23,41.82]
[1752923877802,11.61830293,176.24,176.23,41.82]
[1752923878193,6.63422214,176.24,176.23,41.82]
[1752923878400,6.63422214,176.24,176.22,129.33]
[1752923878605,5.94422214,176.23,176.22,129.33]
[1752923879783,5.94422214,176.23,176.22,130.04]
[1752923880998,3.64976371,176.23,176.22,130.04]
[1752923881297,3.64976371,176.23,176.22,87.63]
[1752923881504,3.64976371,176.23,176.22,129.25]
[1752923882632,3.64976371,176.23,176.22,129.96]
[1752923883498,0.69,176.29,176.22,129.96]
[1752923883698,3.64976371,176.28,176.23,4.35976371]
[1752923883900,3.64976371,176.27,176.24,42.27]
[1752923884197,3.64976371,176.27,176.25,0.71]
[1752923884401,3.64976371,176.27,176.26,41.56]
[1752923885011,0.06,176.32,176.26,134.0871074]
[1752923885212,3.64976371,176.31,176.27,3.64976371]
[1752923885411,3.64976371,176.31,176.28,42.29]
[1752923885612,0.06,176.32,176.29,1.27724714]
[1752923885814,0.06,176.32,176.3,41.58]
[1752923885997,0.06,176.32,176.3,42.29]
[1752923886193,0.06,176.32,176.31,0.71]
[1752923886897,0.06,176.32,176.31,1.2771828]
[1752923887613,0.06,176.32,176.31,0.71]
[1752923888126,4.39976371,176.32,176.29,41.58]
[1752923888431,3.64976371,176.3,176.28,163.16]
[1752923888635,3.64976371,176.29,176.28,163.16]
[1752923888800,3.64976371,176.3,176.28,163.16]
[1752923889114,4.33976371,176.29,176.26,41.58]
[1752923889301,3.64976371,176.27,176.26,41.58]
[1752923890498,5.67289557,176.28,176.26,41.58]
[1752923890709,5.67289557,176.28,176.25,41.58]
[1752923890710,4.33976371,176.27,176.25,41.58]
[1752923890916,3.64976371,176.26,176.25,41.58]
[1752923891135,3.64976371,176.26,176.22,0.74]
[1752923891425,3.64976371,176.23,176.22,0.03]
[1752923891626,3.64976371,176.23,176.22,41.59]
[1752923892199,3.64976371,176.23,176.22,0.03]
[1752923892823,3.64976371,176.24,176.22,0.03]
[1752923894303,3.64976371,176.25,176.23,0.71]
[1752923894494,0.75,176.32,176.24,35.25740807]
[1752923894695,3.64976371,176.27,176.25,41.52]
[1752923895320,0.06,176.32,176.25,42.23]
[1752923895321,3.64976371,176.28,176.25,42.23]
[1752923897411,0.06,176.32,176.26,0.71]
[1752923897646,3.64976371,176.3,176.27,41.52]
[1752923897930,3.64976371,176.29,176.27,42.23]
[1752923898108,5.67182803,176.31,176.27,42.23]
[1752923898428,3.64976371,176.29,176.27,42.23]
[1752923899027,3.64976371,176.28,176.27,42.23]
[1752923899204,3.64976371,176.29,176.27,129.83]
[1752923899724,5.67182803,176.31,176.27,129.83]
[1752923899725,3.64976371,176.28,176.27,129.12]
[1752923900826,3.64976371,176.28,176.27,87.6]
[1752923901007,10.01255699,176.28,176.27,87.6]
[1752923901430,6.42160245,176.32,176.27,42.13]
[1752923901634,3.64976371,176.31,176.28,0.71]
[1752923901938,3.64976371,176.31,176.29,41.46]
[1752923902532,3.70976371,176.32,176.29,42.17]
[1752923903031,0.06,176.32,176.3,1.27721497]
[1752923903236,0.06,176.32,176.31,42.15]
[1752923906822,0.06,176.32,176.31,46.36694651]
[1752923908419,0.06,176.32,176.31,97.13163048]
[1752923909036,0.06,176.32,176.31,184.73163048]
[1752923909335,0.06,176.32,176.31,184.16444768]
[1752923910733,0.06,176.32,176.31,185.78714768]
[1752923911042,0.06,176.38,176.35,50.76468397]
[1752923911231,0.06,176.38,176.37,3.64976371]
[1752923911541,0.06,176.38,176.37,141.95444768]
[1752923911715,0.06,176.38,176.37,291.36444768]
[1752923911921,0.06,176.38,176.37,270.93]
[1752923912126,0.06,176.38,176.37,332.66444768]
[1752923912324,0.06,176.38,176.37,339.10194768]
[1752923913026,0.06,176.38,176.37,340.74964768]
[1752923913227,0.06,176.4,176.39,59.98]
[1752923913414,0.06,176.4,176.39,254.15668927]
[1752923913610,0.06,176.4,176.39,254.29976371]
[1752923914112,0.06,176.4,176.39,274.73421139]
[1752923914319,0.06,176.46,176.44,16.78468397]
[1752923914523,0.06,176.46,176.45,102.80278046]
[1752923914738,0.06,176.46,176.45,103.51278046]
[1752923915418,0.06,176.46,176.45,191.05278046]
[1752923915619,0.06,176.46,176.45,190.48604768]
[1752923916338,0.06,176.46,176.45,344.85337553]
[1752923916555,0.1,176.5,176.49,76.76468397]
[1752923916759,0.1,176.5,176.49,209.25444768]
[1752923917124,0.1,176.5,176.49,209.96444768]
[1752923918534,0.06,176.51,176.49,367.98025479]
[1752923918724,0.06,176.51,176.5,55.69101991]
[1752923918927,0.06,176.51,176.5,153.54747943]
[1752923919235,0.06,176.51,176.5,152.9809072]
[1752923920640,0.1,176.52,176.51,50.76468397]
[1752923920828,0.1,176.52,176.51,99.22344733]
[1752923921343,0.1,176.52,176.51,186.76344733]
[1752923921646,0.1,176.52,176.51,196.1969072]
[1752923921849,0.06,176.54,176.53,76.76468397]
[1752923922049,0.06,176.54,176.53,244.86560638]
[1752923922249,0.1,176.6,176.59,63.0401072]
[1752923922427,0.1,176.6,176.59,106.45109068]
[1752923922630,0.1,176.6,176.59,112.82392549]
[1752923923531,0.1,176.6,176.59,122.82392549]
[1752923923740,0.1,176.6,176.59,122.25764201]
[1752923924255,0.1,176.6,176.59,106.5948072]
[1752923924451,0.1,176.6,176.59,117.16109068]
[1752923924749,0.1,176.6,176.59,116.5948072]
[1752923925740,0.1,176.6,176.59,122.25764201]
[1752923926554,0.1,176.6,176.59,139.20764201]
[1752923926856,0.06,176.66,176.64,50.76468397]
[1752923927053,0.06,176.66,176.65,104.27522157]
[1752923927227,0.1,176.69,176.68,26.0]
[1752923927428,0.1,176.69,176.68,107.56821824]
[1752923927624,0.1,176.69,176.68,108.27821824]
[1752923927829,0.1,176.69,176.68,102.35599501]
[1752923928048,0.1,176.69,176.68,108.27821824]
[1752923929334,0.1,176.69,176.68,67.17821824]
[1752923929535,0.1,176.69,176.68,108.27821824]
[1752923930034,0.1,176.69,176.68,214.13530221]
[1752923930242,0.1,176.69,176.68,213.5693072]
[1752923930442,0.1,176.69,176.68,172.4693072]
[1752923930639,0.1,176.69,176.68,213.5293072]
[1752923931145,0.1,176.69,176.68,219.18925739]
[1752923931348,0.1,176.69,176.68,213.5293072]
[1752923932164,0.1,176.69,176.68,219.18925739]
[1752923932948,0.1,176.69,176.68,213.5293072]
[1752923933551,0.1,176.69,176.68,207.52708397]
[1752923933758,0.1,176.69,176.68,213.4493072]
[1752923935552,0.1,176.69,176.68,211.2069072]
[1752923936263,0.1,176.69,176.68,211.8869072]
[1752923936936,0.1,176.69,176.68,205.96468397]
[1752923937142,0.1,176.69,176.68,211.8869072]
[1752923938962,0.1,176.69,176.68,170.9069072]
[1752923939170,0.1,176.69,176.68,164.30468397]
[1752923939384,0.1,176.69,176.68,211.1269072]
[1752923941846,0.1,176.69,176.68,211.8069072]
[1752923942146,0.1,176.69,176.68,205.88468397]
[1752923942359,0.1,176.69,176.68,211.8069072]
[1752923943069,0.8,176.69,176.68,164.30468397]
[1752923943271,6.72222323,176.69,176.68,91.62468397]
[1752923943445,0.1,176.69,176.68,91.62468397]
[1752923943645,0.1,176.69,176.68,92.19067898]
[1752923945847,6.02222323,176.69,176.68,92.19067898]
[1752923946048,6.72222323,176.69,176.68,92.19067898]
[1752923946460,6.72222323,176.69,176.68,51.33067898]
[1752923946672,6.72222323,176.69,176.68,92.17067898]
[1752923948177,0.8,176.69,176.68,92.17067898]
[1752923948854,0.1,176.69,176.68,92.17067898]
[1752923951669,0.8,176.69,176.68,92.17067898]
[1752923951982,0.1,176.69,176.68,92.17067898]
[1752923953964,0.8,176.69,176.68,92.17067898]
[1752923954774,0.1,176.69,176.68,92.17067898]
[1752923954960,0.1,176.69,176.68,179.71067898]
[1752923955172,0.1,176.69,176.68,183.45491225]
[1752923955780,0.1,176.69,176.68,182.77491225]
[1752923955971,0.1,176.69,176.68,179.14468397]
[1752923956580,0.1,176.69,176.68,179.82468397]
[1752923957385,0.1,176.69,176.68,179.14468397]
[1752923961672,0.1,176.69,176.68,179.82468397]
[1752923962478,3.63022828,176.72,176.71,42.78468397]
[1752923962679,4.33022828,176.72,176.71,83.48468397]
[1752923965278,0.06,176.73,176.72,50.76468397]
[1752923966578,0.06,176.73,176.72,51.33055087]
[1752923967081,4.38022828,176.73,176.72,17.35055087]
[1752923967279,4.38022828,176.73,176.72,58.01055087]
[1752923967886,4.38022828,176.73,176.72,57.44468397]
[1752923968195,0.75,176.73,176.72,40.66]
[1752923968400,4.38022828,176.73,176.72,40.66]
[1752923974408,10.03857717,176.73,176.72,40.66]
[1752923974790,10.03857717,176.73,176.69,50.76468397]
[1752923974791,10.03857717,176.73,176.71,40.58]
[1752923974992,4.32022828,176.72,176.71,40.58]
[1752923977504,5.71834889,176.73,176.72,16.78468397]
[1752923977505,3.69022828,176.73,176.72,16.78468397]
[1752923978210,4.38022828,176.73,176.72,16.78468397]
[1752923978395,3.69022828,176.73,176.72,16.78468397]
[1752923978707,0.06,176.73,176.72,16.78468397]
[1752923981319,0.06,176.73,176.72,50.76468397]
[1752923981692,0.06,176.73,176.72,55.11491225]
[1752923983010,0.06,176.73,176.72,55.68077915]
[1752923983296,0.06,176.73,176.72,148.93944823]
[1752923983602,0.06,176.73,176.72,148.37358133]
[1752923985430,0.06,176.77,176.76,50.76468397]
[1752923985596,0.06,176.77,176.76,189.3541511]
[1752923985917,0.06,176.77,176.76,217.73812386]
[1752923986109,0.06,176.79,176.78,97.36491225]
[1752923986310,0.06,176.79,176.78,138.5105871]
[1752923986510,0.06,176.79,176.78,226.26491225]
[1752923986688,0.06,176.79,176.78,232.12069636]
[1752923987421,0.06,176.79,176.78,242.21087435]
[1752923988903,0.06,176.79,176.78,205.64468397]
[1752923989103,0.06,176.79,176.78,117.32468397]
[1752923989614,0.06,176.79,176.78,91.32468397]
[1752923989821,0.06,176.79,176.78,91.89035882]
[1752923991421,0.06,176.79,176.78,117.89035882]
[1752923991603,0.06,176.79,176.78,117.32468397]
[1752923993119,0.06,176.79,176.78,118.04468397]
[1752923994101,3.69022828,176.79,176.78,76.76468397]
[1752923994406,0.75,176.79,176.78,117.32468397]
[1752923994619,4.38022828,176.79,176.78,117.32468397]
[1752923995514,3.69022828,176.79,176.78,117.32468397]
[1752923996008,0.06,176.79,176.78,117.32468397]
[1752923996312,0.06,176.79,176.78,118.02468397]
[1752923997904,0.06,176.79,176.78,205.62468397]
[1752923999627,0.06,176.79,176.78,118.02468397]
[1752924000426,0.06,176.79,176.78,101.31166075]
[1752924000610,0.06,176.79,176.78,101.8773356]
[1752924000806,0.06,176.79,176.78,92.59035882]
[1752924002025,0.06,176.79,176.78,91.89035882]
[1752924002531,0.06,176.79,176.78,92.59035882]
[1752924004133,0.06,176.79,176.78,96.2205871]
[1752924005431,0.06,176.79,176.78,92.59035882]
[1752924005626,0.06,176.79,176.78,101.8773356]
[1752924005930,0.06,176.79,176.78,107.73311971]
[1752924006321,0.06,176.79,176.78,124.70311971]
[1752924006524,0.06,176.79,176.78,107.14744486]
[1752924006720,0.06,176.79,176.78,107.71311971]
[1752924008234,0.06,176.79,176.78,107.87494659]
[1752924008637,0.06,176.79,176.78,107.71311971]
[1752924009017,0.06,176.79,176.78,132.73621971]
[1752924009220,0.06,176.87,176.86,59.98]
[1752924009420,4.37022828,176.87,176.86,204.72468397]
[1752924009617,3.69022828,176.87,176.86,204.72468397]
[1752924009928,4.37022828,176.87,176.86,204.72468397]
[1752924010262,0.74,176.87,176.86,204.72468397]
[1752924010438,3.69022828,176.87,176.86,204.72468397]
[1752924010934,0.74,176.87,176.86,204.72468397]
[1752924011144,0.06,176.87,176.86,204.72468397]
[1752924012215,0.06,176.87,176.86,205.42468397]
[1752924012619,0.74,176.87,176.86,204.72468397]
[1752924012939,0.06,176.87,176.86,363.409102]
[1752924013545,0.06,176.87,176.86,365.022202]
[1752924013727,0.06,176.87,176.86,370.87798611]
[1752924014133,0.06,176.87,176.86,380.87798611]
[1752924014326,0.06,176.87,176.86,370.87798611]
[1752924014651,0.06,176.87,176.86,397.84798611]
[1752924014836,0.06,176.91,176.9,164.18468397]
[1752924015037,0.06,176.91,176.9,357.25491225]
[1752924015346,0.06,176.91,176.9,357.95491225]
[1752924016935,0.06,176.91,176.9,363.60782349]
[1752924017129,0.06,176.91,176.9,354.32468397]
[1752924017328,0.06,176.91,176.9,360.7792056]
[1752924017522,0.06,176.91,176.9,366.43211684]
[1752924018350,0.06,176.95,176.94,76.76468397]
[1752924018549,0.06,176.95,176.94,279.86608797]
[1752924018734,0.1,176.97,176.96,50.76468397]
[1752924019056,0.1,176.97,176.96,107.18679038]
[1752924019422,0.1,176.97,176.96,107.88679038]
[1752924019822,0.1,176.97,176.96,112.41373698]
[1752924021230,0.06,177.02,177.0,76.76468397]
[1752924021531,0.06,177.02,177.01,61.67985208]
[1752924022535,0.06,177.02,177.01,58.0496238]
[1752924022732,0.06,177.02,177.01,61.67985208]
[1752924023437,0.06,177.02,177.01,58.0496238]
[1752924023640,0.06,177.02,177.01,61.67985208]
[1752924024065,0.06,177.02,177.01,96.35985208]
[1752924024528,0.06,177.02,177.01,55.65985208]
[1752924024728,0.06,177.02,177.01,54.95985208]
[1752924025057,0.06,177.02,177.01,92.0096238]
[1752924025226,0.74,177.02,177.01,51.3296238]
[1752924025433,0.74,177.02,177.01,92.0096238]
[1752924025968,0.06,177.02,177.01,92.0096238]
[1752924026135,0.06,177.02,177.01,17.3496238]
[1752924026332,0.77,177.02,177.01,58.0296238]
[1752924027346,0.77,177.02,177.01,145.4496238]
[1752924027543,4.40022828,177.02,177.01,144.88468397]
[1752924027732,4.40022828,177.02,177.01,170.88468397]
[1752924028258,0.77,177.02,177.01,144.88468397]
[1752924028560,0.06,177.02,177.01,170.88468397]
[1752924028732,0.77,177.02,177.01,170.88468397]
[1752924030259,0.77,177.02,177.01,138.07468397]
[1752924030453,4.40022828,177.02,177.01,178.77468397]
[1752924030769,10.04930748,177.02,177.01,128.12]
[1752924030934,10.04930748,177.02,176.99,26.0]
[1752924030935,10.04930748,177.02,176.99,86.7]
[1752924031131,0.71,177.01,177.0,40.68]
[1752924031336,4.34022828,177.01,177.0,40.68]
[1752924031556,9.98962661,177.01,177.0,40.68]
[1752924032950,9.98962661,177.01,176.97,33.87]
[1752924032951,9.98962661,177.01,176.97,120.57]
[1752924033164,3.63022828,176.98,176.94,33.87]
[1752924033337,3.63022828,176.95,176.9,0.03]
[1752924033646,1.5787,176.96,176.92,16.78468397]
[1752924033843,0.71,176.95,176.93,40.68]
[1752924034046,0.71,176.94,176.93,40.68]
[1752924034232,1.5787,176.96,176.93,40.68]
[1752924034435,2.2887,176.96,176.93,40.68]
[1752924034850,2.2887,176.96,176.94,50.65468397]
[1752924034851,3.63022828,176.96,176.94,50.65468397]
[1752924035047,3.63022828,176.97,176.96,16.78468397]
[1752924035249,2.3145,177.01,176.96,121.33468397]
[1752924035445,2.3145,177.01,176.98,16.78468397]
[1752924035446,3.63022828,176.99,176.98,16.78468397]
[1752924035642,3.63022828,176.99,176.98,57.44468397]
[1752924036034,0.71,177.01,176.98,57.44468397]
[1752924036235,3.63022828,177.0,176.98,57.44468397]
[1752924036439,3.63022828,177.0,176.99,17.34968764]
[1752924037048,6.6059668,177.0,176.99,17.34968764]
[1752924037253,6.6059668,177.0,176.99,16.78468397]
[1752924037462,5.8959668,177.0,176.99,16.78468397]
[1752924038551,0.77,177.02,177.0,16.78468397]
[1752924038751,0.77,177.02,177.01,57.42468397]
[1752924038958,5.9559668,177.02,177.01,57.42468397]
[1752924039570,6.6659668,177.02,177.01,57.42468397]
[1752924040971,0.06,177.02,177.01,57.42468397]
[1752924041149,5.9559668,177.02,177.01,57.42468397]